bitfinex/quotes_BTCUSD_20241123
["timestamp","ask_amount","ask_price","bid_price","bid_amount"]
[1732325782771,0.001718,98043.0,98014.0,0.04083047]
[1732325783005,0.0017196,98047.0,98043.0,0.00405027]
[1732325785137,0.00102017,98046.0,98043.0,0.00405027]
[1732325785373,0.02672142,98057.0,98043.0,0.00405027]
[1732325786053,0.049,98056.0,98043.0,0.00405027]
[1732325786301,0.049,98054.0,98017.0,0.03515027]
[1732325786521,0.0677,98053.0,98017.0,0.03515027]
[1732325786753,0.1068,98052.0,98017.0,0.03515027]
[1732325786981,0.0677,98051.0,98017.0,0.03515027]
[1732325787455,0.0677,98049.0,98017.0,0.04121023]
[1732325787688,0.1167,98048.0,98011.0,0.0478]
[1732325788207,0.1167,98048.0,98011.0,0.08946428]
[1732325788435,0.1167,98047.0,98011.0,0.08571682]
[1732325788677,0.1167,98045.0,98011.0,0.08571682]
[1732325788904,0.1187,98045.0,98011.0,0.08571682]
[1732325789125,0.1187,98045.0,98011.0,0.08388556]
[1732325789354,0.1187,98045.0,98012.0,0.2261]
[1732325789625,0.1187,98045.0,98012.0,0.22580438]
[1732325790350,0.1137,98045.0,98012.0,0.03080438]
[1732325791032,0.0823,98044.0,98012.0,0.03080438]
[1732325792722,0.0823,98044.0,98012.0,0.18080438]
[1732325794317,0.0823,98044.0,98011.0,0.04222128]
[1732325794788,0.0823,98044.0,98012.0,0.0008592]
[1732325795234,0.002,98042.0,98012.0,0.0008592]
[1732325795471,0.002,98043.0,98012.0,0.0008592]
[1732325795725,0.002,98040.0,98012.0,0.0008592]
[1732325795945,0.0785,98039.0,98012.0,0.0008592]
[1732325796396,0.0785,98039.0,98011.0,0.04075925]
[1732325797068,0.0489,98038.0,98011.0,0.04075925]
[1732325797275,0.082,98037.0,98002.0,0.11565364]
[1732325797505,0.082,98037.0,98002.0,0.11171516]
[1732325798185,0.082,98037.0,98002.0,0.06671516]
[1732325799293,0.082,98037.0,98003.0,0.1997]
[1732325801997,0.082,98037.0,98004.0,0.02323961]
[1732325802217,0.082,98037.0,98003.0,0.17793961]
[1732325805914,0.082,98037.0,98003.0,0.17669246]
[1732325806342,0.082,98037.0,98003.0,0.13169246]
[1732325806558,0.082,98037.0,98003.0,0.12794154]
[1732325806825,0.1068,98036.0,98003.0,0.12794154]
[1732325807053,0.082,98037.0,98003.0,0.12794154]
[1732325808440,0.082,98037.0,98003.0,0.12880074]
[1732325808654,0.0489,98038.0,98003.0,0.12880074]
[1732325809127,0.0489,98038.0,98003.0,0.12805093]
[1732325809362,0.0489,98038.0,98004.0,0.0497]
[1732325810253,0.0489,98038.0,98004.0,0.0047]
[1732325811410,0.04271543,98038.0,98004.0,0.0047]
[1732325811855,0.0683,98037.0,98004.0,0.0047]
[1732325812531,0.0683,98037.0,98003.0,0.12805093]
[1732325814409,0.0489,98036.0,98003.0,0.0008592]
[1732325815972,0.0509,98036.0,98003.0,0.0008592]
[1732325817092,0.0683,98035.0,98003.0,0.0008592]
[1732325817320,0.0485,98034.0,98003.0,0.0008592]
[1732325818422,0.0485,98034.0,98002.0,0.02257436]
[1732325820271,0.0485,98034.0,98002.0,0.06295783]
[1732325820491,0.0485,98034.0,98002.0,0.02257436]
[1732325820923,0.0485,98034.0,98002.0,0.02343366]
[1732325822288,0.0485,98034.0,97992.0,0.023]
[1732325822980,0.0485,98034.0,97990.0,0.0477]
[1732325823706,0.0435,98034.0,97991.0,0.00102037]
[1732325825239,0.0435,98034.0,97992.0,0.0779]
[1732325825470,0.0435,98034.0,97995.0,0.023]
[1732325825915,0.0435,98034.0,97995.0,0.173]
[1732325826363,0.0435,98034.0,97995.0,0.128]
[1732325826862,0.0357699,98034.0,97995.0,0.128]
[1732325827070,0.0357699,98034.0,97994.0,0.0779]
[1732325827513,0.0357699,98034.0,97995.0,0.03621318]
[1732325828671,0.0357699,98034.0,97995.0,0.18621318]
[1732325831235,0.0357699,98034.0,97995.0,0.14121318]
[1732325831462,0.0485,98032.0,97995.0,0.14121318]
[1732325831714,0.0826,98029.0,97994.0,0.04161507]
[1732325831928,0.0485,98028.0,97994.0,0.04161507]
[1732325832177,0.0485,98026.0,97988.0,0.078759]
[1732325832421,0.0826,98025.0,97988.0,0.078759]
[1732325832660,0.0826,98025.0,97988.0,0.000859]
[1732325832661,0.0485,98024.0,97988.0,0.000859]
[1732325832870,0.0419562,98022.0,97991.0,0.0008594]
[1732325835821,0.0826,98007.0,97991.0,0.0008594]
[1732325836046,0.0464,98006.0,97991.0,0.0008594]
[1732325836271,0.0464,98004.0,97967.0,0.07733019]
[1732325836508,0.0464,98002.0,97967.0,0.11796492]
[1732325836979,0.0464,98002.0,97968.0,0.15]
[1732325839738,0.04345946,98002.0,97968.0,0.15]
[1732325840173,0.04345946,98002.0,97968.0,0.105]
[1732325840401,0.04345946,98002.0,97967.0,0.11796492]
[1732325840648,0.04345946,98002.0,97970.0,0.0826]
[1732325840883,0.04345946,98002.0,97971.0,0.00102058]
[1732325841312,0.04345946,98002.0,97972.0,0.05148363]
[1732325841549,0.04345946,98002.0,97973.0,0.00102058]
[1732325841790,0.04345946,98002.0,97974.0,0.05107429]
[1732325842286,0.04345946,98002.0,97972.0,0.05148363]
[1732325842504,0.04345946,98002.0,97973.0,0.00102058]
[1732325842980,0.04345946,98002.0,97974.0,0.05107429]
[1732325843441,0.04345946,98002.0,97973.0,0.05148417]
[1732325843682,0.04345946,98002.0,97973.0,0.05250475]
[1732325844348,0.03961417,98002.0,97974.0,0.05107429]
[1732325845260,0.03961417,98002.0,97973.0,0.05116097]
[1732325845504,0.03961417,98002.0,97973.0,0.00102058]
[1732325845727,0.03961417,98002.0,97971.0,0.24195554]
[1732325846661,0.03961417,98002.0,97971.0,0.19056308]
[1732325848234,0.03961417,98002.0,97971.0,0.04056308]
[1732325848672,0.03961417,98002.0,97970.0,0.0826]
[1732325849390,0.03961417,98002.0,97970.0,0.12418076]
[1732325849871,0.03961417,98002.0,97971.0,0.00102058]
[1732325850792,0.03961417,98002.0,97971.0,0.15102058]
[1732325851221,0.03961417,98002.0,97971.0,0.15]
[1732325851665,0.0464,98000.0,97971.0,0.15]
[1732325852336,0.0464,98000.0,97970.0,0.12418076]
[1732325854379,0.0464,98000.0,97970.0,0.12520136]
[1732325854590,0.0813,97999.0,97970.0,0.12418076]
[1732325854823,0.0464,97998.0,97970.0,0.12418076]
[1732325855063,0.0464,97998.0,97971.0,0.15]
[1732325855515,0.0813,97997.0,97970.0,0.04158076]
[1732325855727,0.0464,97995.0,97970.0,0.04158076]
[1732325855960,0.0464,97995.0,97964.0,0.00102067]
[1732325856182,0.0464,97995.0,97967.0,0.04106147]
[1732325856394,0.00102067,97994.0,97964.0,0.14708214]
[1732325856628,0.00102067,97994.0,97964.0,0.14810281]
[1732325857787,0.00102067,97994.0,97960.0,0.0451]
[1732325858018,0.0776,97993.0,97961.0,0.00051034]
[1732325858232,0.00127584,97992.0,97964.0,0.0008596]
[1732325859131,0.1232,97991.0,97964.0,0.0008596]
[1732325859375,0.00127584,97990.0,97964.0,0.0008596]
[1732325859597,0.0776,97989.0,97964.0,0.0008596]
[1732325859812,0.00127584,97988.0,97964.0,0.0008596]
[1732325860060,0.00127584,97988.0,97965.0,0.004062]
[1732325860277,0.00127584,97988.0,97957.0,0.15]
[1732325860536,0.0456,97987.0,97958.0,0.023]
[1732325860766,0.002,98001.0,97958.0,0.023]
[1732325860767,0.0456,97985.0,97958.0,0.023]
[1732325861050,0.00127587,97984.0,97957.0,0.15]
[1732325861243,0.1232,97983.0,97956.0,0.01819972]
[1732325861483,0.00127591,97982.0,97956.0,0.01819972]
[1732325863959,0.00127591,97982.0,97957.0,0.00051047]
[1732325864179,0.00127591,97982.0,97953.0,0.05361019]
[1732325864642,0.1232,97983.0,97954.0,0.00102072]
[1732325864643,0.10780001,97983.0,97954.0,0.00102072]
[1732325865095,0.0012759,97982.0,97954.0,0.00102072]
[1732325868327,0.0012759,97982.0,97953.0,0.00963091]
[1732325869916,0.10535573,97983.0,97954.0,0.00102072]
[1732325870136,0.00102072,97982.0,97954.0,0.00102072]
[1732325870643,0.00102072,97982.0,97954.0,0.02402072]
[1732325872256,0.06957651,97983.0,97953.0,0.18016268]
[1732325872473,0.00102072,97982.0,97954.0,0.00102072]
[1732325873885,0.03752723,97983.0,97955.0,0.0799]
[1732325874126,0.03752723,97983.0,97956.0,0.00102072]
[1732325874788,0.0017192,98002.0,97957.0,0.0458]
[1732325875007,0.0017192,98002.0,97958.0,0.00102072]
[1732325875230,0.0456,98001.0,97958.0,0.00102072]
[1732325876846,0.0017192,98002.0,97957.0,0.00182072]
[1732325876847,0.0452,97999.0,97957.0,0.00182072]
[1732325877068,0.0469,97997.0,97958.0,0.00102072]
[1732325877285,0.0469,97995.0,97958.0,0.00102072]
[1732325877522,0.0469,97993.0,97958.0,0.00102072]
[1732325877780,0.123,97991.0,97958.0,0.00102072]
[1732325877986,0.00102072,97990.0,97958.0,0.00102072]
[1732325878904,0.0017192,98002.0,97958.0,0.00102072]
[1732325880024,0.002,98042.0,97958.0,0.00102072]
[1732325880025,0.549,98019.0,97962.0,0.0479]
[1732325880241,0.1087,98024.0,97965.0,0.17989999]
[1732325880490,0.0469,98023.0,97966.0,0.07932057]
[1732325880699,0.002,98021.0,97967.0,0.0783]
[1732325880923,0.0469,98020.0,97968.0,0.07932057]
[1732325881171,0.0489,98019.0,97968.0,0.07932057]
[1732325881408,0.0469,98019.0,97968.0,0.07932057]
[1732325882079,0.0761,98018.0,97968.0,0.07932057]
[1732325883426,0.0761,98018.0,97972.0,0.1262]
[1732325883661,0.0761,98018.0,97977.0,0.0783]
[1732325884425,0.0761,98018.0,97977.0,0.0333]
[1732325885344,0.07607236,98018.0,97977.0,0.0333]
[1732325885783,0.0469,98017.0,97977.0,0.0333]
[1732325886693,0.0469,98017.0,97977.0,0.03432057]
[1732325886912,0.0469,98017.0,97978.0,0.00102054]
[1732325887131,0.0469,98017.0,97979.0,0.1262]
[1732325887616,0.0469,98017.0,97981.0,0.0783]
[1732325888088,0.0466444,98017.0,97981.0,0.0783]
[1732325888305,0.0466444,98017.0,97981.0,0.07932052]
[1732325888762,0.0466444,98017.0,97982.0,0.0479]
[1732325888991,0.0466444,98017.0,97983.0,0.0783]
[1732325889227,0.0466444,98017.0,97983.0,0.19529999]
[1732325889443,0.0466444,98017.0,97984.0,0.0479]
[1732325889650,0.0466444,98017.0,97984.0,0.1979]
[1732325890107,0.04035854,98017.0,97985.0,0.0479]
[1732325892160,0.04035854,98017.0,97986.0,0.00102043]
[1732325892372,0.04035854,98017.0,97987.0,0.0783]
[1732325892600,0.04035854,98017.0,97987.0,0.07932043]
[1732325894221,0.04035854,98017.0,97987.0,0.03432043]
[1732325894875,0.0469,98011.0,97978.0,0.0479]
[1732325895104,0.0761,98008.0,97978.0,0.0479]
[1732325895382,0.0761,98006.0,97978.0,0.0479]
[1732325897693,0.0492,98005.0,97973.0,0.15]
[1732325897911,0.0764,98004.0,97973.0,0.15]
[1732325898357,0.0764,98004.0,97972.0,0.0822]
[1732325899280,0.0764,98002.0,97971.0,0.0488]
[1732325899538,0.0017202,98023.0,97965.0,0.0008602]
[1732325899539,0.0764,98000.0,97972.0,0.04209497]
[1732325899788,0.002,98008.0,97965.0,0.0008602]
[1732325899789,0.1256,97999.0,97965.0,0.0008602]
[1732325900010,0.002,98008.0,97965.0,0.0008602]
[1732325900011,0.1256,98007.0,97965.0,0.0008602]
[1732325900239,0.002,98000.0,97965.0,0.04128654]
[1732325900460,0.1256,97995.0,97965.0,0.0008602]
[1732325900696,0.002,98000.0,97965.0,0.0008602]
[1732325901165,0.0492,97998.0,97965.0,0.0008602]
[1732325901376,0.1256,97996.0,97965.0,0.0008602]
[1732325901590,0.0764,97994.0,97965.0,0.0008602]
[1732325902043,0.0764,97992.0,97965.0,0.0008602]
[1732325902262,0.0764,97992.0,97956.0,0.0046602]
[1732325902468,0.1256,97990.0,97956.0,0.0046602]
[1732325902908,0.1256,97989.0,97956.0,0.0046602]
[1732325903169,0.0764,97987.0,97956.0,0.0046602]
[1732325903639,0.0492,97986.0,97956.0,0.0046602]
[1732325904953,0.0492,97986.0,97956.0,0.04681729]
[1732325905800,0.0764,97985.0,97956.0,0.04681729]
[1732325906477,0.0764,97985.0,97956.0,0.00086]
[1732325906687,0.0492,97984.0,97956.0,0.00086]
[1732325906945,0.0764,97983.0,97956.0,0.00086]
[1732325908492,0.0764,97989.0,97958.0,0.2013651]
[1732325908728,0.07054572,97989.0,97960.0,0.023]
[1732325909202,0.07054572,97989.0,97960.0,0.173]
[1732325909449,0.07054572,97989.0,97961.0,0.0488]
[1732325910308,0.07054572,97989.0,97961.0,0.0038]
[1732325912135,0.07054572,97989.0,97962.0,0.03607891]
[1732325912577,0.0492,97988.0,97962.0,0.03607891]
[1732325913205,0.0492,97988.0,97973.0,0.03]
[1732325914255,0.0492,97988.0,97959.0,0.0822]
[1732325916002,0.04914722,97988.0,97959.0,0.0822]
[1732325917090,0.04914722,97988.0,97959.0,0.2322]
[1732325917529,0.0809,97987.0,97954.0,0.0008601]
[1732325917963,0.0809,97987.0,97954.0,0.00188087]
[1732325918197,0.0809,97987.0,97954.0,0.0008601]
[1732325918443,0.0809,97987.0,97953.0,0.11957969]
[1732325918969,0.0809,97987.0,97952.0,0.0795]
[1732325919196,0.0809,97985.0,97952.0,0.0795]
[1732325919411,0.0464,97984.0,97959.0,0.0008603]
[1732325919635,0.0464,97982.0,97959.0,0.0008603]
[1732325919865,0.0464,97980.0,97959.0,0.0008603]
[1732325920549,0.0809,97979.0,97959.0,0.0008603]
[1732325920775,0.1273,97978.0,97959.0,0.0008603]
[1732325921000,0.1273,97985.0,97959.0,0.0008603]
[1732325921478,0.002,97986.0,97959.0,0.0008603]
[1732325921717,0.1273,97984.0,97959.0,0.0008603]
[1732325921943,0.0464,97986.0,97959.0,0.0008603]
[1732325922187,0.1273,97985.0,97959.0,0.0008603]
[1732325922399,0.0037206,97989.0,97947.0,0.14730659]
[1732325922641,0.0464,97979.0,97946.0,0.0795]
[1732325922900,0.0464,97979.0,97947.0,0.04106957]
[1732325923112,0.0464,97977.0,97946.0,0.12004203]
[1732325924651,0.0464,97977.0,97947.0,0.15]
[1732325925323,0.0464,97975.0,97947.0,0.15]
[1732325926211,0.0809,97976.0,97947.0,0.15]
[1732325926426,0.0809,97976.0,97947.0,0.105]
[1732325926890,0.0809,97976.0,97946.0,0.04054203]
[1732325927315,0.0809,97976.0,97941.0,0.0795]
[1732325928898,0.0809,97976.0,97942.0,0.00102087]
[1732325929342,0.0464,97975.0,97942.0,0.00102087]
[1732325929560,0.0809,97974.0,97942.0,0.00102087]
[1732325929770,0.0464,97973.0,97942.0,0.00102087]
[1732325930401,0.0809,97970.0,97941.0,0.03552087]
[1732325930614,0.04742087,97969.0,97941.0,0.03552087]
[1732325931290,0.04742087,97969.0,97941.0,0.03638127]
[1732325933464,0.03506401,97969.0,97941.0,0.03638127]
[1732325933680,0.03506401,97969.0,97942.0,0.00102087]
[1732325934431,0.00127609,97968.0,97938.0,0.14440213]
[1732325936818,0.06794076,97967.0,97938.0,0.14440213]
[1732325937030,0.00127609,97966.0,97938.0,0.22110213]
[1732325938366,0.00127609,97966.0,97938.0,0.17610213]
[1732325938582,0.0037206,97989.0,97937.0,0.14071101]
[1732325938583,0.1,98022.0,97941.0,0.0461]
[1732325938795,0.0017202,98023.0,97944.0,0.05171335]
[1732325939058,0.0017202,98023.0,97947.0,0.05149628]
[1732325939265,0.0017202,98023.0,97949.0,0.0767]
[1732325939501,0.0017202,98023.0,97953.0,0.0461]
[1732325939730,0.0017202,98023.0,97955.0,0.0461]
[1732325939958,0.0017202,98023.0,97957.0,0.0461]
[1732325940170,0.0017202,98023.0,97958.0,0.07772053]
[1732325940810,0.0017202,98023.0,97959.0,0.0997]
[1732325941042,0.0017202,98023.0,97960.0,0.00102053]
[1732325941254,0.0017202,98023.0,97961.0,0.0767]
[1732325941510,0.0017202,98023.0,97962.0,0.04712053]
[1732325941750,0.1227,98016.0,97962.0,0.04712053]
[1732325941985,0.0777,98014.0,97962.0,0.04712053]
[1732325942293,0.0777,98014.0,97962.0,0.15212053]
[1732325942523,0.03730753,98013.0,97962.0,0.15212053]
[1732325942762,0.0777,98012.0,97962.0,0.1511]
[1732325942992,0.0777,98012.0,97963.0,0.023]
[1732325943481,0.0777,98012.0,97964.0,0.00102053]
[1732325944193,0.0777,98012.0,97965.0,0.0767]
[1732325944466,0.0777,98012.0,97966.0,0.00102053]
[1732325945676,0.045,98011.0,97966.0,0.02402053]
[1732325946139,0.045,98011.0,97966.0,0.17402053]
[1732325946370,0.00102053,98010.0,97966.0,0.12902053]
[1732325946603,0.00102053,98010.0,97967.0,0.00102053]
[1732325946835,0.00102053,98010.0,97968.0,0.0767]
[1732325947064,0.00102053,98010.0,97969.0,0.00102053]
[1732325947986,0.02648221,98011.0,97969.0,0.00102053]
[1732325948468,0.02648221,98011.0,97971.0,0.0767]
[1732325948715,0.02648221,98011.0,97970.0,0.0461]
[1732325948716,0.0174251,98011.0,97972.0,0.0767]
[1732325948945,0.0174251,98011.0,97973.0,0.023]
[1732325950797,0.0174251,98011.0,97972.0,0.0767]
[1732325951280,0.0174251,98011.0,97972.0,0.07388599]
[1732325952203,0.00934461,98011.0,97972.0,0.07388599]
[1732325952631,0.05052062,98012.0,97972.0,0.07388599]
[1732325952849,0.05052062,98012.0,97973.0,0.1961]
[1732325953076,0.05052062,98012.0,97974.0,0.2267]
[1732325954214,0.05052062,98012.0,97974.0,0.2217]
[1732325955561,0.045,98011.0,97974.0,0.2217]
[1732325956444,0.045,98011.0,97974.0,0.0267]
[1732325956649,0.045,98011.0,97975.0,0.049]
[1732325958549,0.02775093,98011.0,97975.0,0.049]
[1732325959260,0.02775093,98011.0,97976.0,0.0812]
[1732325959727,0.02775093,98011.0,97977.0,0.049]
[1732325960190,0.02775093,98011.0,97977.0,0.199]
[1732325960419,0.02775093,98011.0,97977.0,0.154]
[1732325961344,0.02775093,98011.0,97977.0,0.004]
[1732325962773,0.02775093,98011.0,97978.0,0.03727402]
[1732325963022,0.05052062,98012.0,97981.0,0.199]
[1732325963270,0.05052062,98012.0,97982.0,0.0500204]
[1732325963737,0.05052062,98012.0,97983.0,0.0812]
[1732325963964,0.05052062,98012.0,97984.0,0.00102039]
[1732325964243,0.05052062,98012.0,97985.0,0.00102039]
[1732325964478,0.00102039,98011.0,97983.0,0.18722039]
[1732325964711,0.00102039,98011.0,97984.0,0.00102039]
[1732325966109,0.1265,98010.0,97962.0,0.0498598]
[1732325966340,0.0769,98006.0,97962.0,0.0498598]
[1732325966568,0.07792039,98005.0,97963.0,0.00102062]
[1732325967268,0.07792039,98005.0,97964.0,0.0812]
[1732325968455,0.07792039,98005.0,97964.0,0.0370602]
[1732325970034,0.07292039,98005.0,97964.0,0.0370602]
[1732325971410,0.0769,98003.0,97935.0,0.1]
[1732325971841,0.0496,98004.0,97935.0,0.1]
[1732325971842,0.0769,98001.0,97948.0,0.023]
[1732325972302,0.0769,98001.0,97947.0,0.09307857]
[1732325972505,0.0769,97999.0,97947.0,0.09307857]
[1732325973395,0.0769,97997.0,97947.0,0.09307857]
[1732325974293,0.0769,97997.0,97948.0,0.0966]
[1732325974788,0.0769,97997.0,97948.0,0.2466]
[1732325975217,0.0769,97997.0,97949.0,0.049]
[1732325975654,0.0769,97997.0,97949.0,0.199]
[1732325975866,0.0769,97993.0,97949.0,0.199]
[1732325976100,0.0787,97991.0,97949.0,0.199]
[1732325976331,0.0787,97991.0,97949.0,0.154]
[1732325976552,0.0787,97989.0,97949.0,0.154]
[1732325976780,0.0787,97987.0,97949.0,0.004]
[1732325977022,0.0787,97985.0,97949.0,0.004]
[1732325977954,0.0462,97984.0,97949.0,0.004]
[1732325978191,0.0805,97983.0,97949.0,0.004]
[1732325979781,0.03842278,97983.0,97949.0,0.004]
[1732325980017,0.01428722,97984.0,97950.0,0.00102056]
[1732325980244,0.01428722,97984.0,97948.0,0.16162055]
[1732325980481,0.06621278,97983.0,97948.0,0.16162055]
[1732325980697,0.05192556,97983.0,97949.0,0.00102054]
[1732325981172,0.01428722,97984.0,97949.0,0.00102054]
[1732325981382,0.01428722,97984.0,97950.0,0.0802]
[1732325981622,0.01428722,97984.0,97951.0,0.00102054]
[1732325981844,0.01428722,97984.0,97952.0,0.0802]
[1732325982075,0.01428722,97984.0,97953.0,0.00102054]
[1732325982524,0.01309724,98010.0,98003.0,0.00930696]
[1732325982742,0.15,98097.0,98003.0,0.00930696]
[1732325983176,0.002,98054.0,98003.0,0.00930696]
[1732325983643,0.549,98035.0,98003.0,0.00930696]
[1732325984354,0.08152052,98022.0,97967.0,0.04552748]
[1732325984811,0.02402052,98022.0,97968.0,0.00102053]
[1732325985036,0.023,98018.0,97968.0,0.00102053]
[1732325985269,0.0805,98016.0,97967.0,0.08639673]
[1732325985515,0.0462,98013.0,97968.0,0.04792053]
[1732325985730,0.0805,98008.0,97968.0,0.04792053]
[1732325985949,0.023,98015.0,97968.0,0.04792053]
[1732325985950,0.1267,98004.0,97968.0,0.04792053]
[1732325986168,0.0805,98002.0,97968.0,0.04792053]
[1732325986387,0.00102052,98001.0,97968.0,0.04792053]
[1732325986600,0.0805,98002.0,97968.0,0.04792053]
[1732325987034,0.06937011,98002.0,97968.0,0.04792053]
[1732325987420,0.06937011,98002.0,97968.0,0.19792053]
[1732325987589,0.00102052,98001.0,97968.0,0.19792053]
[1732325988220,0.00102052,98001.0,97968.0,0.15292053]
[1732325988441,0.00102052,98001.0,97968.0,0.00292053]
[1732325988442,0.0462,98000.0,97968.0,0.00292053]
[1732325989780,0.0462,98000.0,97968.0,0.04461489]
[1732325989982,0.0462,98000.0,97968.0,0.00292053]
[1732325991463,0.00127556,97999.0,97968.0,0.00292053]
[1732325992384,0.00127556,97999.0,97967.0,0.04493109]
[1732325993941,0.00127556,97999.0,97967.0,0.04579099]
[1732325994863,0.00127556,97999.0,97879.0,0.67167952]
[1732325994864,0.00127556,97999.0,97940.0,0.15189606]
[1732325995072,0.00127556,97999.0,97943.0,0.023]
[1732325995291,0.00127556,97999.0,97945.0,0.023]
[1732325995533,0.00127556,97999.0,97946.0,0.0329]
[1732325995757,0.00127556,97999.0,97948.0,0.023]
[1732325995985,0.00127556,97999.0,97950.0,0.023]
[1732325996235,0.0473,97998.0,97951.0,0.0109]
[1732325997351,0.0473,97998.0,97951.0,0.05146225]
[1732325997572,0.0816,97997.0,97951.0,0.05146225]
[1732325997768,0.0473,97996.0,97953.0,0.0768]
[1732325999223,0.0473,97996.0,97954.0,0.0109]
[1732326000317,0.0816,97995.0,97953.0,0.0886619]
[1732326000539,0.0473,97994.0,97953.0,0.0886619]
[1732326002481,0.0816,97993.0,97953.0,0.0886619]
[1732326002730,0.1,98005.0,97953.0,0.0886619]
[1732326002731,0.0816,97991.0,97953.0,0.0886619]
[1732326002955,0.0816,97989.0,97953.0,0.0886619]
[1732326003176,0.0816,97987.0,97953.0,0.0886619]
[1732326003392,0.0816,97985.0,97953.0,0.0886619]
[1732326003594,0.0473,97984.0,97953.0,0.0886619]
[1732326004237,0.0473,97984.0,97953.0,0.0436619]
[1732326004452,0.00127565,98004.0,97953.0,0.0436619]
[1732326005551,0.00127565,98004.0,97953.0,0.0445222]
[1732326005965,0.0017206,97996.0,97953.0,0.0445222]
[1732326006175,0.09799959,98005.0,97954.0,0.00102048]
[1732326006398,0.0007654,98004.0,97953.0,0.0445222]
[1732326006685,0.09799959,97999.0,97953.0,0.0445222]
[1732326006926,0.0007654,97998.0,97953.0,0.0418222]
[1732326007155,0.09799959,97994.0,97953.0,0.0418222]
[1732326007400,0.09876499,97993.0,97953.0,0.0418222]
[1732326007641,0.0472,97984.0,97953.0,0.0418222]
[1732326007845,0.09876499,97993.0,97953.0,0.0418222]
[1732326007846,0.0793,97981.0,97953.0,0.0418222]
[1732326008051,0.0472,97978.0,97953.0,0.0418222]
[1732326008677,0.0793,97977.0,97953.0,0.0418222]
[1732326008908,0.0773,97977.0,97954.0,0.0479]
[1732326009143,0.0773,97977.0,97953.0,0.0008603]
[1732326009144,0.0472,97976.0,97953.0,0.0008603]
[1732326009357,0.0472,97976.0,97954.0,0.00102063]
[1732326010015,0.0472,97976.0,97954.0,0.00102056]
[1732326010482,0.0472,97976.0,97954.0,0.04100287]
[1732326010696,0.0472,97976.0,97953.0,0.0008603]
[1732326011598,0.0472,97976.0,97953.0,0.04237411]
[1732326011816,0.0472,97976.0,97953.0,0.0008603]
[1732326012049,0.0472,97974.0,97953.0,0.0008603]
[1732326012261,0.0472,97972.0,97953.0,0.0008603]
[1732326012461,0.0793,97971.0,97953.0,0.0008603]
[1732326012683,0.0472,97970.0,97953.0,0.0008603]
[1732326012915,0.0472,97968.0,97953.0,0.0008603]
[1732326013146,0.09735478,97981.0,97953.0,0.0008603]
[1732326013147,0.0793,97967.0,97953.0,0.04180136]
[1732326013370,0.0472,97966.0,97953.0,0.0008603]
[1732326014245,0.0472,97966.0,97940.0,0.05182937]
[1732326016680,0.0483,97964.0,97939.0,0.04129955]
[1732326016887,0.0483,97963.0,97938.0,0.20124652]
[1732326017317,0.0483,97963.0,97940.0,0.05172869]
[1732326017541,0.0483,97963.0,97953.0,0.0008603]
[1732326018264,0.0483,97963.0,97939.0,0.05128569]
[1732326018725,0.0483,97963.0,97940.0,0.00102078]
[1732326020977,0.0483,97963.0,97939.0,0.0518805]
[1732326021181,0.0483,97963.0,97940.0,0.05229619]
[1732326022283,0.0483,97963.0,97938.0,0.20123565]
[1732326022746,0.0483,97963.0,97938.0,0.19839588]
[1732326024074,0.0333,97963.0,97938.0,0.19839588]
[1732326026281,0.0333,97963.0,97938.0,0.15339588]
[1732326026489,0.0762,97964.0,97937.0,0.14117514]
[1732326026490,0.0762,97964.0,97941.0,0.05167437]
[1732326026700,0.0762,97990.0,97941.0,0.05167437]
[1732326026931,0.09863058,97991.0,97941.0,0.05167437]
[1732326026932,0.0762,97988.0,97941.0,0.05167437]
[1732326027174,0.0483,97985.0,97941.0,0.05167437]
[1732326027391,0.0483,97983.0,97942.0,0.126]
[1732326027620,0.0483,97983.0,97945.0,0.05153977]
[1732326028090,0.0483,97983.0,97947.0,0.05183315]
[1732326028296,0.0483,97983.0,97948.0,0.30628]
[1732326028518,0.0483,97983.0,97949.0,0.15]
[1732326028942,0.0483,97983.0,97950.0,0.30628]
[1732326029348,0.0483,97983.0,97951.0,0.15]
[1732326029811,0.0762,97982.0,97951.0,0.15]
[1732326030031,0.0762,97980.0,97951.0,0.15]
[1732326030247,0.1245,97980.0,97951.0,0.105]
[1732326030460,0.1245,97980.0,97952.0,0.30627]
[1732326032313,0.0483,97979.0,97952.0,0.30627]
[1732326032518,0.0483,97977.0,97953.0,0.15]
[1732326032935,0.0762,97976.0,97953.0,0.15]
[1732326033140,0.0483,97975.0,97953.0,0.15]
[1732326033317,0.0762,97974.0,97953.0,0.15]
[1732326033538,0.0483,97971.0,97953.0,0.15]
[1732326033949,0.0483,97969.0,97953.0,0.15]
[1732326034404,0.0483,97969.0,97953.0,0.105]
[1732326034810,0.0450288,97969.0,97953.0,0.105]
[1732326035084,0.0762,97968.0,97953.0,0.105]
[1732326035519,0.0678121,97968.0,97953.0,0.105]
[1732326035976,0.06126968,97968.0,97953.0,0.105]
[1732326036602,0.05109058,97968.0,97953.0,0.105]
[1732326037736,0.0475,97967.0,97953.0,0.105]
[1732326038159,0.0475,97987.0,97954.0,0.0801]
[1732326038422,0.06381162,97986.0,97954.0,0.34137]
[1732326039272,0.06381162,97986.0,97955.0,0.15]
[1732326039734,0.06381162,97986.0,97956.0,0.30626]
[1732326041056,0.06381162,97986.0,97957.0,0.15]
[1732326041303,0.0475,97985.0,97957.0,0.15]
[1732326041518,0.0782,97984.0,97957.0,0.15]
[1732326041757,0.0782,97981.0,97957.0,0.15]
[1732326042454,0.0782,97981.0,97957.0,0.105]
[1732326043098,0.0782,97981.0,97958.0,0.30625]
[1732326044183,0.0782,97981.0,97959.0,0.0801]
[1732326044649,0.0782,97981.0,97961.0,0.15]
[1732326045158,0.0017206,97996.0,97963.0,0.0477]
[1732326045652,0.0017206,97996.0,97964.0,0.30623]
[1732326046302,0.0017206,97996.0,97964.0,0.26123]
[1732326047589,0.0017206,97996.0,97965.0,0.15]
[1732326048031,0.1257,97995.0,97965.0,0.15]
[1732326048674,0.09646265,97995.0,97965.0,0.15]
[1732326049348,0.06718265,97995.0,97965.0,0.15]
[1732326050465,0.06718265,97995.0,97965.0,0.105]